fUST/lending_fUST_20251020
["ID","MTS","AMOUNT","RATE_DAILY","PERIOD"]
[391906341,1760973046580,-1000.0,0.00032609,30]
[391906342,1760973046589,-1000.0,0.00032609,30]
[391906343,1760973046599,-1000.0,0.00032609,30]
[391906344,1760973046609,-1000.0,0.00032609,30]
[391906345,1760973046620,-1000.0,0.00032609,30]
[391906346,1760973046630,-1000.0,0.00032609,30]
[391906347,1760973046640,-1000.0,0.00032609,30]
[391906348,1760973046650,-1000.0,0.00032609,30]
[391906349,1760973046659,-1000.0,0.00032609,30]
[391906350,1760973046668,-1000.0,0.00032609,30]
[391906351,1760973046677,-1000.0,0.00032609,30]
[391906352,1760973046687,-1000.0,0.00032609,30]
[391906353,1760973046697,-1000.0,0.00032609,30]
[391906354,1760973046707,-1000.0,0.00032609,30]
[391906355,1760973046716,-1000.0,0.00032609,30]
[391906356,1760973046726,-151.0,0.00032609,30]
[391906357,1760973046735,-1000.0,0.00032609,30]
[391906358,1760973046746,-1000.0,0.00032609,30]
[391906359,1760973046755,-151.0,0.00032609,30]
[391906360,1760973046764,-1000.0,0.00032609,30]
[391906361,1760973046774,-1000.0,0.00032609,30]
[391906362,1760973046786,-978.475617,0.00032609,30]
[391906363,1760973046796,-10000.0,0.00032609,30]
[391906364,1760973046805,-10000.0,0.00032609,30]
[391906365,1760973046815,-10000.0,0.00032609,30]
[391906366,1760973046823,-10000.0,0.00032609,30]
[391906367,1760973046833,-10000.0,0.00032609,30]
[391906368,1760973046842,-10000.0,0.00032609,30]
[391906369,1760973046852,-10000.0,0.00032609,30]
[391906370,1760973046861,-10000.0,0.00032609,30]
[391906371,1760973046870,-10000.0,0.00032609,30]
[391906372,1760973046879,-10000.0,0.00032609,30]
[391906373,1760973046888,-10000.0,0.00032609,30]
[391906374,1760973046898,-10000.0,0.00032609,30]
[391906375,1760973046907,-10000.0,0.00032609,30]
[391906376,1760973046916,-151.0,0.00032609,30]
[391906377,1760973046925,-2020.68978413,0.00032644,5]
[391906378,1760973046935,-250.0,0.00032685,2]
[391906379,1760973046944,-152.37,0.00032697,15]
[391906380,1760973046954,-346.07068861,0.00032703,2]
[391906381,1760973047070,-698.43196359,0.00032703,2]
[391906382,1760973047080,-1257.17753447,0.00032703,2]
[391906383,1760973047090,-2234.98228349,0.00032703,2]
[391906384,1760973047100,-3492.15981796,0.00032703,2]
[391906385,1760973047110,-5028.71013786,0.00032703,2]
[391906386,1760973047119,-482.02449745,0.00032703,2]
[391906387,1760973047129,-867.64409541,0.00032703,2]
[391906388,1760973047140,-1542.47839184,0.00032703,2]
[391906389,1760973047149,-2410.12248725,0.00032703,2]
[391906390,1760973047159,-3470.57638164,0.00032703,2]
[391906391,1760973047168,-4723.84007501,0.00032703,2]
[391906392,1760973047179,-6169.91356736,0.00032703,2]
[391906393,1760973047190,-662.45315381,0.00032703,2]
[391906394,1760973047199,-1192.41567686,0.00032703,2]
[391906395,1760973047208,-2119.8500922,0.00032703,2]
[391906396,1760973047218,-3312.26576906,0.00032703,2]
[391906397,1760973047229,-4769.66270744,0.00032703,2]
[391906398,1760973047239,-208.74823321,0.00032703,2]
[391906399,1760973047250,-375.37107297,0.00032703,2]
[391906400,1760973047260,-159.97751647,0.00032715,7]
[391906401,1760973047269,-152.37,0.00032797,15]
[391906402,1760973047280,-2540.16,0.000328,2]
[391906403,1760973047289,-189.82742202,0.00032819,5]
[391906404,1760973047298,-972.36268032,0.00032821,5]
[391906405,1760973047308,-1237.9691853,0.00032826,2]
[391906406,1760973047318,-1260.0,0.00032832,2]
[391906407,1760973047328,-465.0,0.00032852,2]
[391906408,1760973047337,-2999.0,0.00032876,120]
[391906409,1760973047347,-151.0,0.00032877,30]
[391906410,1760973047356,-151.0,0.00032877,30]
[391906411,1760973047366,-151.0,0.00032877,30]
[391906412,1760973047375,-151.0,0.00032877,30]
[391906413,1760973047385,-151.0,0.00032877,30]
[391906414,1760973047394,-189.257916,0.00032877,30]
[391906415,1760973047403,-151.0,0.00032877,30]
[391906416,1760973047413,-151.486568,0.00032877,30]
[391906417,1760973047422,-152.37,0.00032897,60]
[391906418,1760973047432,-213.13086189,0.000329,120]
[391906419,1760973047441,-828.4621375,0.000329,120]
[391906420,1760973047450,-425.53646074,0.000329,120]
[391906421,1760973047459,-480.0,0.00032922,2]
[391906422,1760973047468,-324.678356,0.00032922,7]
[391906423,1760973047478,-324.678356,0.00032922,7]
[391906424,1760973047488,-324.678356,0.00032922,7]
[391906425,1760973047499,-152.37,0.00032997,60]
[391906426,1760973047508,-402.9601108,0.00033,120]
[391906427,1760973047517,-480.0,0.00033007,2]
[391906428,1760973047527,-1237.9691853,0.00033021,2]
[391906429,1760973047536,-480.0,0.00033049,2]
[391906430,1760973047546,-152.37,0.00033097,60]
[391906431,1760973047556,-151.0,0.000331,10]
[391906432,1760973047566,-166.84843,0.00033186,2]
[391906433,1760973047575,-152.205393,0.00033186,2]
[391906434,1760973047585,-1237.9691853,0.0003319,2]
[391906435,1760973047595,-152.37,0.00033197,60]
[391906436,1760973047604,-177.24960773,0.000332,117]
[391906437,1760973047616,-480.0,0.00033211,2]
[391906438,1760973047627,-480.0,0.00033227,2]
[391906439,1760973047638,-152.37,0.00033297,60]
[391906440,1760973047648,-480.0,0.00033325,2]
[391906441,1760973047657,-480.0,0.00033329,2]
[391906442,1760973047667,-1360.0,0.0003338,2]
[391906443,1760973047677,-152.37,0.00033397,60]
[391906444,1760973047688,-22072.97,0.000334,14]
[391906445,1760973047697,-151.0,0.000334,30]
[391906446,1760973047707,-1297.143153,0.000334,30]
[391906447,1760973047716,-151.0,0.000334,30]
[391906448,1760973047726,-831.41234,0.000334,30]
[391906449,1760973047735,-1297.143153,0.000334,30]
[391906450,1760973047744,-1474.53122,0.000334,30]
[391906451,1760973047754,-831.41234,0.000334,30]
[391906452,1760973047764,-1297.143153,0.000334,30]
[391906453,1760973047773,-1474.53122,0.000334,30]
[391906454,1760973047782,-831.41234,0.000334,30]
[391906455,1760973047792,-1297.143153,0.000334,30]
[391906456,1760973047801,-151.0,0.000334,30]
[391906457,1760973047810,-1474.53122,0.000334,30]
[391906458,1760973047820,-831.41234,0.000334,30]
[391906459,1760973047828,-151.0,0.000334,30]
[391906460,1760973047841,-151.0,0.000334,30]
[391906461,1760973047851,-151.0,0.000334,30]
[391906462,1760973047861,-1474.53122,0.000334,30]
[391906463,1760973047870,-151.0,0.000334,30]
[391906464,1760973047879,-219.803885,0.000334,30]
[391906465,1760973047888,-151.0,0.000334,30]
[391906466,1760973047898,-219.803885,0.000334,30]
[391906467,1760973047908,-219.803885,0.000334,30]
[391906468,1760973047917,-219.803885,0.000334,30]
[391906469,1760973047928,-151.0,0.000334,30]
[391906470,1760973047938,-151.0,0.000334,30]
[391906471,1760973047948,-151.0,0.000334,30]
[391906472,1760973047957,-160.328852,0.000334,30]
[391906473,1760973047966,-151.0,0.000334,30]
[391906474,1760973047975,-151.0,0.000334,30]
[391906475,1760973047986,-151.0,0.000334,30]
[391906476,1760973047995,-151.0,0.000334,30]
[391906477,1760973048006,-151.0,0.000334,30]
[391906478,1760973048015,-154.438244,0.000334,30]
[391906479,1760973048026,-151.0,0.000334,30]
[391906480,1760973048037,-151.0,0.000334,30]
[391906481,1760973048047,-211.958132,0.000334,30]
[391906482,1760973048057,-211.958132,0.000334,30]
[391906483,1760973048067,-211.958132,0.000334,30]
[391906484,1760973048078,-1483.852699,0.000334,30]
[391906485,1760973048088,-211.958132,0.000334,30]
[391906486,1760973048098,-1483.852699,0.000334,30]
[391906487,1760973048108,-1483.852699,0.000334,30]
[391906488,1760973048118,-1483.852699,0.000334,30]
[391906489,1760973048127,-200.88836746,0.00033452,2]
[391906490,1760973048136,-1237.9691853,0.00033472,2]
[391906491,1760973048146,-152.37,0.00033497,60]
[391906492,1760973048155,-480.0,0.00033545,2]
[391906493,1760973048164,-151.0,0.00033561,7]
[391906494,1760973048173,-151.0,0.00033561,7]
[391906495,1760973048182,-151.0,0.00033561,7]
[391906496,1760973048192,-151.0,0.00033561,7]
[391906497,1760973048201,-151.0,0.00033561,7]
[391906498,1760973048210,-151.0,0.00033561,7]
[391906499,1760973048219,-151.0,0.00033561,7]
[391906500,1760973048228,-151.0,0.00033561,7]
[391906501,1760973048238,-151.0,0.00033561,7]
[391906502,1760973048247,-282.872339,0.00033561,7]
[391906503,1760973048258,-151.0,0.00033561,30]
[391906504,1760973048268,-151.0,0.00033561,30]
[391906505,1760973048277,-151.0,0.00033561,30]
[391906506,1760973048286,-151.0,0.00033561,30]
[391906507,1760973048295,-151.0,0.00033561,30]
[391906508,1760973048304,-1823.142174,0.00033561,30]
[391906509,1760973048314,-1823.142174,0.00033561,30]
[391906510,1760973048324,-1823.142174,0.00033561,30]
[391906511,1760973048333,-1823.142174,0.00033561,30]
[391906512,1760973048343,-151.0,0.00033561,30]
[391906513,1760973048352,-151.0,0.00033561,30]
[391906514,1760973048363,-292.577982,0.00033561,30]
[391906515,1760973048372,-151.0,0.00033561,30]
[391906516,1760973048382,-180.969693,0.00033561,30]
[391906517,1760973048392,-180.969693,0.00033561,30]
[391906518,1760973048402,-180.969693,0.00033561,30]
[391906519,1760973048412,-180.969693,0.00033561,30]
[391906520,1760973048421,-151.0,0.00033561,30]
[391906521,1760973048432,-151.0,0.00033561,30]
[391906522,1760973048442,-151.0,0.00033561,30]
[391906523,1760973048452,-2999.0,0.00033561,120]
[391906524,1760973048461,-480.0,0.00033566,2]
[391906525,1760973048472,-417.15472785,0.0003357,120]
[391906526,1760973048481,-152.37,0.00033597,60]
[391906527,1760973048491,-35000.0,0.000336,3]
[391906528,1760973048501,-41862.27639722,0.000336,2]
[391906529,1760973048510,-151.0,0.000336,30]
[391906530,1760973048520,-151.0,0.000336,30]
[391906531,1760973048530,-161.844852,0.000336,30]
[391906532,1760973048539,-151.0,0.000336,30]
[391906533,1760973048549,-161.844852,0.000336,30]
[391906534,1760973048559,-151.0,0.000336,30]
[391906535,1760973048570,-161.844852,0.000336,30]
[391906536,1760973048581,-161.844852,0.000336,30]
[391906537,1760973048591,-157.146065,0.000336,30]
[391906538,1760973048600,-151.0,0.000336,30]
[391906539,1760973048611,-151.0,0.000336,30]
[391906540,1760973048626,-151.0,0.000336,30]
[391906541,1760973048635,-151.0,0.000336,30]
[391906542,1760973048645,-1059.156503,0.000336,30]
[391906543,1760973048655,-256.031148,0.000336,30]
[391906544,1760973048665,-1059.156503,0.000336,30]
[391906545,1760973048674,-256.031148,0.000336,30]
[391906546,1760973048684,-151.0,0.000336,30]
[391906547,1760973048694,-1059.156503,0.000336,30]
[391906548,1760973048704,-256.031148,0.000336,30]
[391906549,1760973048714,-1059.156496,0.000336,30]
[391906550,1760973048724,-256.031142,0.000336,30]
[391906551,1760973048733,-435.042453,0.000336,30]
[391906552,1760973048844,-435.042453,0.000336,30]
[391906553,1760973048854,-152.37,0.00033697,60]
[391906555,1760973048867,-166.84843,0.000337,10]
[391906556,1760973048877,-46487.88,0.000337,10]
[391906557,1760973048886,-166.84843,0.00033701,10]
[391906558,1760973048896,-152.205393,0.00033701,10]
[391906559,1760973048906,-1237.9691853,0.00033701,2]
[391906560,1760973048916,-166.84843,0.00033702,10]
[391906561,1760973048926,-152.205393,0.00033702,10]
[391906562,1760973048940,-166.84843,0.00033704,10]
[391906563,1760973048950,-152.205393,0.00033704,10]
[391906564,1760973048960,-166.84843,0.00033705,10]
[391906565,1760973048970,-152.205393,0.00033705,10]
[391906566,1760973048980,-480.0,0.00033786,2]
[391906567,1760973048990,-152.37,0.00033797,60]
[391906568,1760973049000,-1656.36211854,0.000338,120]
[391906569,1760973049009,-152.37,0.00033897,60]
[391906570,1760973049019,-65222.0,0.000339,60]
[391906571,1760973049029,-5137.96285126,0.000339,120]
[391906572,1760973049039,-213.13086189,0.000339,120]
[391906573,1760973049049,-828.4621375,0.000339,120]
[391906574,1760973049058,-153.581276,0.000339,30]
[391906575,1760973049068,-151.0,0.000339,30]
[391906576,1760973049077,-1090.923273,0.000339,30]
[391906577,1760973049086,-151.0,0.000339,2]
[391906578,1760973049096,-1090.923273,0.000339,30]
[391906579,1760973049105,-1090.923273,0.000339,30]
[391906580,1760973049115,-151.0,0.000339,30]
[391906581,1760973049124,-1090.923273,0.000339,30]
[391906582,1760973049134,-188.030672,0.000339,30]
[391906583,1760973049144,-151.0,0.000339,30]
[391906584,1760973049153,-151.0,0.000339,30]
[391906585,1760973049162,-151.0,0.000339,30]
[391906586,1760973049172,-168.195918,0.000339,30]
[391906587,1760973049181,-155.166118,0.000339,30]
[391906588,1760973049194,-1297.143153,0.000339,30]
[391906589,1760973049204,-151.0,0.000339,30]
[391906590,1760973049213,-1297.143153,0.000339,30]
[391906591,1760973049223,-831.41234,0.000339,30]
[391906592,1760973049233,-1474.53122,0.000339,30]
[391906594,1760973049243,-831.41234,0.000339,30]
[391906595,1760973049252,-1297.143153,0.000339,30]
[391906596,1760973049261,-1474.53122,0.000339,30]
[391906598,1760973049271,-831.41234,0.000339,30]
[391906600,1760973049281,-1297.143153,0.000339,30]
[391906601,1760973049290,-151.0,0.000339,30]
[391906602,1760973049300,-831.41234,0.000339,30]
[391906603,1760973049309,-1474.53122,0.000339,30]
[391906604,1760973049318,-151.0,0.000339,30]
[391906605,1760973049329,-151.0,0.000339,30]
[391906606,1760973049338,-151.0,0.000339,30]
[391906607,1760973049347,-1474.53122,0.000339,30]
[391906608,1760973049357,-162.994797,0.000339,30]
[391906609,1760973049367,-219.803885,0.000339,30]
[391906610,1760973049376,-151.0,0.000339,30]
[391906611,1760973049386,-219.803885,0.000339,30]
[391906612,1760973049395,-219.803885,0.000339,30]
[391906613,1760973049405,-219.803885,0.000339,30]
[391906614,1760973049415,-151.0,0.000339,30]
[391906615,1760973049424,-151.0,0.000339,30]
[391906616,1760973049435,-151.0,0.000339,30]
[391906617,1760973049445,-151.0,0.000339,30]
[391906618,1760973049454,-151.0,0.000339,30]
[391906619,1760973049463,-195.670966,0.000339,30]
[391906620,1760973049473,-195.670966,0.000339,30]
[391906621,1760973049482,-195.670966,0.000339,30]
[391906622,1760973049492,-553.943476,0.000339,30]
[391906623,1760973049501,-195.670966,0.000339,30]
[391906624,1760973049510,-553.943476,0.000339,30]
[391906625,1760973049519,-553.943476,0.000339,30]
[391906626,1760973049529,-553.943476,0.000339,30]
[391906627,1760973049538,-177.750339,0.000339,30]
[391906628,1760973049547,-177.750339,0.000339,30]
[391906629,1760973049557,-177.750339,0.000339,30]
[391906630,1760973049566,-177.750339,0.000339,30]
[391906631,1760973049576,-151.0,0.000339,30]
[391906632,1760973049586,-151.0,0.000339,30]
[391906633,1760973049596,-151.0,0.000339,30]
[391906634,1760973049605,-153.811176,0.000339,30]
[391906635,1760973049617,-425.53646074,0.000339,120]
[391906636,1760973049627,-151.0,0.000339,30]
[391906637,1760973049637,-151.0,0.000339,30]
[391906638,1760973049646,-542.894894,0.000339,30]
[391906639,1760973049656,-151.0,0.000339,30]
[391906640,1760973049665,-542.894894,0.000339,30]
[391906641,1760973049674,-297.53795,0.000339,30]
[391906642,1760973049685,-542.894894,0.000339,30]
[391906643,1760973049695,-151.0,0.000339,30]
[391906644,1760973049705,-542.894894,0.000339,30]
[391906645,1760973049715,-151.0,0.000339,30]
[391906646,1760973049725,-151.0,0.000339,30]
[391906647,1760973049735,-151.0,0.000339,30]
[391906648,1760973049745,-151.0,0.000339,30]
[391906649,1760973049754,-151.0,0.000339,30]
[391906650,1760973049764,-151.0,0.000339,30]
[391906651,1760973049773,-159.973758,0.000339,30]
[391906652,1760973049783,-151.0,0.000339,30]
[391906653,1760973049792,-10000.0,0.000339,30]
[391906654,1760973049802,-10000.0,0.000339,30]
[391906655,1760973049812,-10000.0,0.000339,30]
[391906656,1760973049822,-10000.0,0.000339,30]
[391906657,1760973049832,-10000.0,0.000339,30]
[391906658,1760973049842,-10000.0,0.000339,30]
[391906659,1760973049852,-10000.0,0.000339,30]
[391906660,1760973049862,-10000.0,0.000339,30]
[391906661,1760973049871,-10000.0,0.000339,30]
[391906662,1760973049881,-10000.0,0.000339,30]
[391906663,1760973049890,-10000.0,0.000339,30]
[391906664,1760973049900,-10000.0,0.000339,30]
[391906665,1760973049910,-211.958132,0.000339,30]
[391906666,1760973049919,-10000.0,0.000339,30]
[391906667,1760973049929,-211.958132,0.000339,30]
[391906668,1760973049939,-211.958132,0.000339,30]
[391906669,1760973049948,-151.0,0.000339,30]
[391906670,1760973049958,-1483.852699,0.000339,30]
[391906671,1760973049967,-211.958132,0.000339,30]
[391906672,1760973049977,-1483.852699,0.000339,30]
[391906673,1760973049988,-1483.852699,0.000339,30]
[391906674,1760973049998,-1483.852699,0.000339,30]
[391906675,1760973050007,-174.77639936,0.00033928,2]
[391906676,1760973050017,-154.08754,0.00033937,30]
[391906677,1760973050027,-154.08754,0.00033937,30]
[391906678,1760973050037,-154.08754,0.00033937,30]
[391906679,1760973050046,-154.08754,0.00033937,30]
[391906680,1760973050055,-192.259718,0.00033937,30]
[391906681,1760973050065,-192.259718,0.00033937,30]
[391906682,1760973050075,-192.259718,0.00033937,30]
[391906683,1760973050085,-192.259718,0.00033937,30]
[391906684,1760973050095,-151.0,0.00033937,30]
[391906685,1760973050105,-151.0,0.00033937,30]
[391906686,1760973050115,-151.0,0.00033937,30]
[391906687,1760973050125,-151.0,0.00033937,30]
[391906688,1760973050134,-151.0,0.00033937,30]
[391906689,1760973050143,-151.0,0.00033937,30]
[391906690,1760973050153,-151.0,0.00033937,30]
[391906691,1760973050162,-151.0,0.00033937,30]
[391906692,1760973050173,-151.0,0.00033937,30]
[391906693,1760973050184,-151.0,0.00033937,30]
[391906694,1760973050193,-151.0,0.00033937,30]
[391906695,1760973050203,-151.0,0.00033937,30]
[391906696,1760973050213,-151.0,0.00033937,30]
[391906697,1760973050223,-151.0,0.00033937,30]
[391906698,1760973050233,-799.886058,0.00033937,30]
[391906699,1760973050243,-203.456997,0.00033937,30]
[391906700,1760973050253,-799.886058,0.00033937,30]
[391906701,1760973050263,-203.456997,0.00033937,30]
[391906702,1760973050273,-799.886058,0.00033937,30]
[391906703,1760973050283,-151.0,0.00033937,30]
[391906704,1760973050293,-203.456997,0.00033937,30]
[391906705,1760973050303,-203.456997,0.00033937,30]
[391906706,1760973050312,-799.886058,0.00033937,30]
[391906707,1760973050321,-151.0,0.00033937,30]
[391906708,1760973050330,-151.0,0.00033937,30]
[391906709,1760973050339,-187.635193,0.00033937,30]
[391906710,1760973050348,-151.0,0.00033937,30]
[391906711,1760973050357,-151.0,0.00033937,30]
[391906712,1760973050367,-151.0,0.00033937,30]
[391906713,1760973050473,-151.0,0.00033937,30]
[391906714,1760973050483,-151.0,0.00033937,30]
[391906715,1760973050492,-151.0,0.00033937,30]
[391906716,1760973050501,-151.0,0.00033937,30]
[391906717,1760973050510,-220.519447,0.00033937,30]
[391906718,1760973050520,-220.519447,0.00033937,30]
[391906719,1760973050529,-173.402367,0.00033937,30]
[391906720,1760973050539,-173.402367,0.00033937,30]
[391906721,1760973050548,-220.519447,0.00033937,30]
[391906722,1760973050557,-220.519447,0.00033937,30]
[391906723,1760973050566,-173.402367,0.00033937,30]
[391906724,1760973050576,-151.0,0.00033937,30]
[391906725,1760973050587,-173.402367,0.00033937,30]
[391906726,1760973050598,-151.0,0.00033937,30]
[391906727,1760973050607,-151.0,0.00033937,30]
[391906728,1760973050618,-151.0,0.00033937,30]
[391906729,1760973050630,-496.657153,0.00033937,30]
[391906730,1760973050640,-496.657153,0.00033937,30]
[391906731,1760973050650,-496.657153,0.00033937,30]
[391906732,1760973050660,-496.657153,0.00033937,30]
[391906733,1760973050671,-151.0,0.00033937,30]
[391906734,1760973050680,-151.0,0.00033937,30]
[391906735,1760973050690,-151.90501,0.00033937,30]
[391906736,1760973050702,-408.067066,0.00033937,30]
[391906737,1760973050711,-408.067066,0.00033937,30]
[391906738,1760973050721,-408.067066,0.00033937,30]
[391906739,1760973050730,-408.067066,0.00033937,30]
[391906740,1760973050740,-180.921693,0.00033937,30]
[391906741,1760973050749,-180.921693,0.00033937,30]
[391906742,1760973050758,-180.921693,0.00033937,30]
[391906743,1760973050768,-151.0,0.00033937,30]
[391906744,1760973050777,-180.921693,0.00033937,30]
[391906745,1760973050787,-152.547343,0.00033937,30]
[391906746,1760973050796,-186.281692,0.00033937,30]
[391906747,1760973050805,-151.0,0.00033937,30]
[391906748,1760973050815,-151.0,0.00033937,30]
[391906749,1760973050824,-155.877407,0.00033937,30]
[391906750,1760973050834,-151.0,0.00033937,30]
[391906751,1760973050843,-151.0,0.00033937,30]
[391906752,1760973050852,-151.0,0.00033937,30]
[391906753,1760973050863,-415.275717,0.00033937,15]
[391906754,1760973050872,-415.275717,0.00033937,15]
[391906755,1760973050882,-415.275717,0.00033937,15]
[391906756,1760973050891,-415.275717,0.00033937,15]
[391906757,1760973050901,-151.0,0.00033937,30]
[391906758,1760973050909,-501.806734,0.00033937,30]
[391906759,1760973050919,-151.0,0.00033937,30]
[391906760,1760973050929,-501.806734,0.00033937,30]
[391906761,1760973050939,-151.0,0.00033937,30]
[391906762,1760973050948,-151.0,0.00033937,30]
[391906763,1760973050958,-501.806734,0.00033937,30]
[391906764,1760973050968,-501.806734,0.00033937,30]
[391906765,1760973050977,-417.15472785,0.0003394,30]
[391906766,1760973050987,-151.0,0.00033944,30]
[391906767,1760973050996,-151.0,0.00033944,30]
[391906768,1760973051005,-151.0,0.00033944,30]
[391906769,1760973051014,-151.0,0.00033944,30]
[391906770,1760973051023,-151.0,0.00033944,30]
[391906771,1760973051032,-151.0,0.00033944,30]
[391906772,1760973051042,-151.0,0.00033944,30]
[391906773,1760973051051,-151.0,0.00033944,30]
[391906774,1760973051060,-261.384855,0.00033944,30]
[391906775,1760973051070,-261.384855,0.00033944,30]
[391906776,1760973051079,-261.384855,0.00033944,30]
[391906777,1760973051088,-261.384855,0.00033944,30]
[391906778,1760973051097,-151.0,0.00033944,30]
[391906779,1760973051107,-151.0,0.00033944,30]
[391906780,1760973051116,-229.470551,0.00033944,30]
[391906781,1760973051126,-151.0,0.00033944,30]
[391906782,1760973051135,-151.0,0.00033944,30]
[391906783,1760973051144,-151.0,0.00033944,30]
[391906784,1760973051153,-151.0,0.00033944,30]
[391906785,1760973051163,-151.0,0.00033944,30]
[391906786,1760973051173,-151.0,0.00033944,30]
[391906787,1760973051184,-151.0,0.00033944,30]
[391906788,1760973051193,-151.0,0.00033944,30]
[391906789,1760973051202,-151.0,0.00033944,30]
[391906790,1760973051212,-151.0,0.00033944,30]
[391906791,1760973051223,-151.0,0.00033944,30]
[391906792,1760973051233,-151.0,0.00033944,30]
[391906793,1760973051242,-151.0,0.00033944,30]
[391906794,1760973051251,-151.0,0.00033944,30]
[391906795,1760973051260,-151.0,0.00033944,30]
[391906796,1760973051271,-151.0,0.00033944,30]
[391906797,1760973051281,-151.0,0.00033944,30]
[391906798,1760973051291,-151.0,0.00033944,30]
[391906799,1760973051301,-799.886058,0.00033944,30]
[391906800,1760973051310,-203.456997,0.00033944,30]
[391906801,1760973051321,-799.886058,0.00033944,30]
[391906802,1760973051332,-203.456997,0.00033944,30]
[391906803,1760973051341,-799.886058,0.00033944,30]
[391906804,1760973051351,-151.0,0.00033944,30]
[391906805,1760973051361,-203.456997,0.00033944,30]
[391906806,1760973051370,-203.456997,0.00033944,30]
[391906807,1760973051382,-799.886058,0.00033944,30]
[391906808,1760973051392,-151.0,0.00033944,30]
[391906809,1760973051403,-151.0,0.00033944,30]
[391906810,1760973051414,-151.0,0.00033944,30]
[391906811,1760973051423,-151.0,0.00033944,30]
[391906812,1760973051433,-153.329086,0.00033944,30]
[391906813,1760973051444,-151.0,0.00033944,30]
[391906814,1760973051453,-151.0,0.00033944,30]
[391906815,1760973051462,-151.0,0.00033944,30]
[391906816,1760973051472,-151.0,0.00033944,30]
[391906817,1760973051482,-220.519447,0.00033944,30]
[391906818,1760973051491,-220.519447,0.00033944,30]
[391906819,1760973051500,-173.402367,0.00033944,30]
[391906820,1760973051510,-173.402367,0.00033944,30]
[391906821,1760973051520,-220.519447,0.00033944,30]
[391906822,1760973051530,-220.519447,0.00033944,30]
[391906823,1760973051540,-173.402367,0.00033944,30]
[391906824,1760973051550,-173.402367,0.00033944,30]
[391906825,1760973051560,-151.0,0.00033944,30]
[391906826,1760973051571,-151.0,0.00033944,30]
[391906827,1760973051581,-151.0,0.00033944,30]
[391906828,1760973051591,-151.0,0.00033944,30]
[391906829,1760973051600,-496.657153,0.00033944,30]
[391906830,1760973051609,-496.657153,0.00033944,30]
[391906831,1760973051622,-496.657153,0.00033944,30]
[391906832,1760973051632,-496.657153,0.00033944,30]
[391906833,1760973051641,-151.0,0.00033944,30]
[391906834,1760973051651,-151.0,0.00033944,30]
[391906835,1760973051662,-408.067066,0.00033944,30]
[391906836,1760973051671,-408.067066,0.00033944,30]
[391906837,1760973051680,-408.067066,0.00033944,30]
[391906838,1760973051692,-408.067066,0.00033944,30]
[391906839,1760973051701,-180.921693,0.00033944,30]
[391906840,1760973051710,-180.921693,0.00033944,30]
[391906841,1760973051720,-180.921693,0.00033944,30]
[391906842,1760973051730,-249.018806,0.00033944,30]
[391906843,1760973051740,-180.921693,0.00033944,30]
[391906844,1760973051751,-152.424338,0.00033944,30]